Cogmind - Beta 13 @@@ ROGUE MODE // 2024.04.16 @ 21:31:22 Player: SVIT13 Result: Destroyed by D-53 Grenadier with Mini Grenade Launcher Performance ------------- Evolutions (0) 0 Regions Visited (2) 400 Robots Destroyed (5) 25 Value Destroyed (106) 106 Prototype IDs (0) 0 Alien Tech Used (0) 0 Bonus (0) 0 TOTAL SCORE: 531 Bonus ------- None Cogmind --------- Core Integrity 0/250 Matter 300/300 Energy 100/100 System Corruption 5% Temperature Cool (0) Movement Rolling (80) Location -10/Mines Parts ------- > --- POWER (1) -------- (None) > --- PROPULSION (2) --- Wheel > --- UTILITY (2) ------ Small Storage Unit Weapon Shielding > --- WEAPON (2) ------- (None) > --- INVENTORY (8) ---- Light Ion Engine Improved Aluminum Leg Wheel Improved Terrain Scanner Improved Targeting Computer Improved Targeting Computer Peak State ------------ > --- POWER ------------ Light Ion Engine > --- PROPULSION ------- Improved Aluminum Leg Improved Aluminum Leg > --- UTILITY ---------- Small Storage Unit Light Armor Plating > --- WEAPON ----------- Heavy EM Pulse Gun Heavy EM Pulse Gun > --- INVENTORY -------- Light Ion Engine Wheel Wheel Improved Terrain Scanner Improved Targeting Computer Improved Targeting Computer Weapon Shielding [Rating: 12] Favorites ----------- Power Light Ion Engine Engine Light Ion Engine Propulsion Wheel Leg Improved Aluminum Leg Wheel Wheel Utility Small Storage Unit Device Improved Terrain Scanner Storage Small Storage Unit Protection Light Armor Plating Weapon Heavy EM Pulse Gun Energy Gun Heavy EM Pulse Gun Special Weapon Mining Laser Build | -11 -10 -10 ------- Run | Yrd Mat Min Slots Evolved . | . . . Power . | . . . Propulsion . | . . . Utility . | . . . Weapon . | . . . Parts Attached 20 | 8 5 7 Power 3 | 1 . 2 Engine 3 | 1 . 2 Core . | . . . Reactor . | . . . Propulsion 8 | 3 2 3 Treads . | . . . Leg 2 | . 2 . Wheel 6 | 3 . 3 Hover . | . . . Flight . | . . . Utility 4 | 2 1 1 Device 1 | 1 . . Storage 1 | 1 . . Processor . | . . . Hackware . | . . . Protection 2 | . 1 1 Artifact . | . . . Weapon 5 | 2 2 1 Energy Gun 4 | 2 2 . Energy Cannon . | . . . Ballistic Gun . | . . . Ballistic Cannon . | . . . Launcher . | . . . Special Weapon 1 | . . 1 Impact Weapon . | . . . Slashing Weapon . | . . . Piercing Weapon . | . . . Special Melee Weapon . | . . . Unidentified Prototypes . | . . . Parts Lost 8 | . . 8 Power 2 | . . 2 Propulsion 2 | . . 2 Utility 1 | . . 1 Weapon 3 | . . 3 Highest Loss Streak 5 | . . 5 To Critical Strikes . | . . . Average Slot Usage (%) 87 | . 98 78 Engine 13 | . 14 13 Leg 13 | . 14 13 Wheel 12 | . 14 11 Storage 14 | . 14 14 Protection 12 | . 12 13 Energy Gun 15 | . 27 7 Special Weapon 2 | . . 4 Naked Turns . | . . . Heaviest Build 17 | 13 17 17 Greatest Support 26 | 26 26 26 Greatest Overweight (x) . | . . . Average Overweight (x) . | . . . Largest Inventory Capacity 8 | 8 8 8 Average Capacity 7 | 5 8 8 Most Carried 8 | 4 8 7 Average Carried 4 | 1 5 5 Final Capacity 8 | 8 8 8 Final Carried 7 | 4 7 6 Class Distribution -------------------- 100% | Mutant Dominant Class ---------------- Mutant | -10/Materials Mutant | -10/Mines Resources | -11 -10 -10 ----------- Run | Yrd Mat Min Matter Collected 400 | 280 50 70 Remotely . | . . . Salvage Created 271 | 108 60 103 Parts 13 | 5 4 4 Haulers Intercepted 1 | . 1 . Recyclers Shooed . | . . . Parts Field Recycled . | . . . Retrieved Matter . | . . . Parts Self-Destructed . | . . . Prevented . | . . . Kills | -11 -10 -10 ------- Run | Yrd Mat Min Combat Hostiles Destroyed 3 | . . 3 Guns 2 | . . 2 Cannons 1 | . . 1 Classes Destroyed 5 | 2 1 2 Tunneler 1 | 1 . . Hauler 1 | . 1 . Recycler 1 | 1 . . Grunt 2 | . . 2 Assembled 1 | . . 1 Best Kill Streak 2 | 2 1 2 Combat Bots Only 2 | . . 2 Max Kills in Single Turn 1 | 1 1 1 Gunslinging . | . . . Exploded . | . . . Melee . | . . . Uniques/NPCs Destroyed . | . . . Combat | -11 -10 -10 -------- Run | Yrd Mat Min Hostile Shots Fired 63 | . . 63 Missed 18 | . . 18 Damage Taken 902 | . . 902 Core 251 | . . 251 Absorbed by Shields . | . . . Redirected to Shielding 17 | . . 17 Core Remaining (%) 100 | 100 . . Volleys Fired 20 | 3 3 14 Largest 2 | 2 2 2 Hottest 100 | 90 90 100 Shots Fired 34 | 6 6 22 Gun 32 | 6 6 20 Cannon . | . . . Launcher . | . . . Special 2 | . . 2 Kinetic . | . . . Thermal 5 | 3 . 2 Explosive . | . . . Electromagnetic 29 | 3 6 20 Robot Hit Streak 5 | 2 4 5 Robot Miss Streak 2 | 1 1 2 Penetration Max . | . . . Secondary Targets 1 | . . 1 Max Gunslinging Chain 1 | . . 1 Shots Hit Robots 20 | 3 4 13 Core Hits 9 | 3 1 5 Critical Kills . | . . . Critical Parts Destroyed . | . . . Critical Strikes . | . . . Melee Attacks . | . . . Impact . | . . . Slashing . | . . . Piercing . | . . . Sneak Attacks . | . . . Combat Hostiles . | . . . Follow-up Attacks . | . . . Damage Inflicted 348 | 37 63 248 Guns 271 | 37 63 171 Cannons . | . . . Explosions 53 | . . 53 Melee . | . . . Ramming . | . . . Kinetic . | . . . Thermal 77 | . . 77 Explosive . | . . . Electromagnetic 271 | 37 63 171 Impact . | . . . Slashing . | . . . Piercing . | . . . Highest Corruption 5 | . . 5 Average Corruption 5 | . . 5 Corruption Purged . | . . . Corruption Blocked . | . . . Effects 2 | . . 2 Message Errors 1 | . . 1 Parts Rejected 1 | . . 1 Overload Shots . | . . . Overflow Damage . | . . . Projectiles . | . . . Explosions . | . . . Melee . | . . . Knockbacks . | . . . Impact . | . . . Kinetic . | . . . Secondary . | . . . Self-Inflicted Damage 54 | . . 54 Shots 1 | . . 1 Rammed . | . . . Targets Rammed . | . . . Kicked . | . . . Crushed . | . . . Highest Temperature 249 | 90 117 249 Average Temperature 88 | 46 61 103 Received Heat Transfer 142 | . . 142 Siege Activations . | . . . Robots Corrupted . | . . . Combat Hostiles . | . . . Parts Fried 1 | . 1 . Impact Corruptions . | . . . Robots Melted . | . . . Combat Hostiles . | . . . Parts Melted . | . . . Heat Transferred 100 | . . 100 Parts Sabotaged . | . . . Parts Stolen . | . . . Parts Stripped . | . . . Power Chain Reactions 1 | . . 1 Alert | -11 -10 -10 ------- Run | Yrd Mat Min Peak Influence 74 | 10 13 74 Initial 6 | . 6 4 Average 11 | 5 7 16 Maximum Alert Level . | . . . Low Security (%) 100 | 100 100 100 Level 1 . | . . . Level 2 . | . . . Level 3 . | . . . Level 4 . | . . . Level 5 . | . . . High Security . | . . . Max Security . | . . . Squads Dispatched . | . . . Investigation . | . . . Extermination . | . . . Reinforcement . | . . . Assault . | . . . Garrison . | . . . Intercept . | . . . Searches Triggered . | . . . Construction Impeded . | . . . Haulers Reinforced . | . . . Active Scanning Responses . | . . . Cargo Convoy Interrupts . | . . . Stealth | -11 -10 -10 --------- Run | Yrd Mat Min Distress Signals . | . . . Communications Jammed . | . . . Distress Signals . | . . . Times Spotted 17 | . . 17 Peak Tracking Total 10 | . . 10 Tactical Retreats 1 | . . 1 Traps | -11 -10 -10 ------- Run | Yrd Mat Min Traps Triggered . | . . . Indirectly . | . . . Trap Hack Attempts . | . . . Triggered . | . . . Disarmed . | . . . Reprogrammed . | . . . Reused . | . . . Traps Extracted . | . . . Installed . | . . . Triggered . | . . . Machines | -11 -10 -10 ---------- Run | Yrd Mat Min Machines Disabled 1 | . . 1 Max in Single Turn 1 | . . 1 Machines Repaired . | . . . Machines Dismantled . | . . . Machines Sabotaged . | . . . Overloaded Fab Kills . | . . . Hacking | -11 -10 -10 --------- Run | Yrd Mat Min Machines Accessed 2 | . 2 . Terminals 2 | . 2 . Fabricators . | . . . Repair Stations . | . . . Recycling Units . | . . . Scanalyzers . | . . . Garrison Access . | . . . Total Hacks 2 | . 2 . Successful . | . . . Failed 2 | . 2 . Catastrophic . | . . . Database Lockouts . | . . . Manual 1 | . 1 . Terminals 2 | . 2 . Fabricators . | . . . Repair Stations . | . . . Recycling Units . | . . . Scanalyzers . | . . . Garrison Access . | . . . Terminal Hacks . | . . . Fabricator Hacks . | . . . Repair Station Hacks . | . . . Recycling Unit Hacks . | . . . Scanalyzer . | . . . Garrison Access Hacks . | . . . Unauthorized Hacks . | . . . Terminals . | . . . Fabricators . | . . . Repair Stations . | . . . Recycling Units . | . . . Scanalyzers . | . . . Garrison Access . | . . . Data Cores Recovered . | . . . Used . | . . . Hacking Detections 2 | . 2 . Full Trace Events . | . . . Feedback Events . | . . . Feedback Blocked . | . . . Robot Schematics Acquired . | . . . Robots Built . | . . . Authchips . | . . . Time . | . . . Total Robot Build Rating . | . . . Part Schematics Acquired . | . . . Parts Built . | . . . Authchips . | . . . Time . | . . . Total Part Build Rating . | . . . Parts Repaired . | . . . Time . | . . . Parts Recycled . | . . . Recycled Matter . | . . . Retrieved Matter . | . . . Retrieved Components . | . . . Parts Scanalyzed . | . . . Part Schematics Acquired . | . . . Parts Damaged . | . . . Bothacking | -11 -10 -10 ------------ Run | Yrd Mat Min Used RIF Installer . | . . . Robots Hacked . | . . . Non-combat . | . . . Combat . | . . . Robot Hacks Applied . | . . . Relay Couplers Released . | . . . Fabnet Peak Effective % . | . . . Robots Rewired . | . . . Allies Hacked . | . . . Hacks Repelled . | . . . Allies | -11 -10 -10 -------- Run | Yrd Mat Min Total Allies 2 | . . 2 Largest Group 2 | . . 2 Highest-Rated Group 38 | . . 38 Highest-Rated Ally 31 | . . 31 Total Orders . | . . . Ally Attacks 1 | . . 1 Total Damage 20 | . . 20 Kills 1 | . . 1 Allies Corrupted . | . . . Allies Melted . | . . . Intel | -11 -10 -10 ------- Run | Yrd Mat Min Robot Analysis Total . | . . . Derelict Logs Recovered . | . . . Drone Launches . | . . . Drone Recoveries . | . . . Exploration | -11 -10 -10 ------------- Run | Yrd Mat Min Turns Passed 407 | 63 141 203 Spaces Moved 343 | 45 121 177 Core 8 | 8 . . Treads . | . . . Legs 65 | . 42 23 Wheels 270 | 37 79 154 Hover . | . . . Flight . | . . . Fastest Speed 50 | 50 80 80 Average Speed 87 | 78 93 85 Slowest Speed 120 | 90 120 120 Overloaded Moves . | . . . Propulsion Burnouts . | . . . Robots Hopped . | . . . Cave-ins Triggered . | . . . Exploration Rate (%) 17 | 4 22 26 Regions Visited 2 Branch Regions 1 Pre-discovered Areas . | . . . Known Exits Taken . | . . . Unknown Exits Taken 2 | 1 1 . Scrap Searched . | . . . Spaces Dug . | . . . Terrain Destroyed 6 | . . 6 Melee . | . . . Projectile . | . . . AOE 6 | . . 6 Terrain Rammed . | . . . Walls Destroyed . | . . . Machines Disabled . | . . . Actions | -11 -10 -10 --------- Run | Yrd Mat Min Total 412 | 66 144 202 Wait . | . . . Move 341 | 44 120 177 Hop . | . . . Pick Up 24 | 11 9 4 Fast Attach . | . . . Attach 13 | 7 1 5 Detach 1 | . 1 . Swap 7 | 1 4 2 Drop 6 | . 6 . Fire 20 | 3 3 14 Melee . | . . . Ram . | . . . Kick . | . . . Crush . | . . . Escape Stasis . | . . . Rewire . | . . . Trap . | . . . Miscellaneous . | . . . Route ------- -11/Scrapyard -10/Materials -10/Mines History --------- Turn | Location | Event 4 | -11/Scrapyard | Discovered new exit (range 15) 64 | -11/Scrapyard | Entered Materials 123 | -10/Materials | Discovered new exit (range 15) 205 | -10/Materials | Entered Mines 239 | -10/Mines | Assembled infested the area 244 | -10/Mines | Assisted by a Guerilla fighting off Assembled 264 | -10/Mines | Core integrity fell below 50% 291 | -10/Mines | Lost 5 parts (1p1n1u2w) 307 | -10/Mines | Build established: Mutant 322 | -10/Mines | Core integrity fell below 20% 408 | -10/Mines | Destroyed by D-53 Grenadier with Mini Grenade Launcher Last Messages --------------- 00338_ T-07 Excavator suffers critical hit (Destroy). 00338_ T-07 Excavator destroyed. 00339_ K-01 Serf collects debris. 00341_ Acquired Wheel. 00343_ Acquired 10 matter. 00345_ Acquired Mining Laser. 00346_ System corrupted: Wheel rejected. 00358_ as-40660 destroyed. 00365_ Acquired 10 matter. 00368_ TMRRNKGBHERV2IDWJ 00375_ Acquired Lgt. Ion Engine. 00378_ Acquired Wheel. 00380_ Acquired 20 matter. 00387_ U-05 Engineer builds a Wall. 00398_ K-01 Serf collects debris. 00404_ R-06 Scavenger destroyed. 00406_ Mining Laser destroyed. 00408_ Lgt. Ion Engine destroyed. 00408_ Wheel destroyed. Map ----- +----------------------------------------------------+ | ?????????????## ##?????# #????? | | ??????????????## %* ####### #????? | | ???????????????# #### #????? | | ???????????????# #??## ###### ###### | | ???????????????# #???## ##???# | *% | | ???????????????# #????###????# ####### | | ???????????????# #??###??????# #?????? | | ???????????????# #### #??????# #?????? | | ???????????????# ############# #?????? | | ???????????????# ## % #?????? | | ????????????#### ## % ####?????? | | ????????????# #????????? | | ????????????# %%## """ #????????? | | ????????????# ##### #????????? | | ??????###???# #???# #????????? | | ?????## ???# #???###########????????? | | ????## ??# ##?????#####???????????? | | ????# ### ! ##??? ???????????? | | ????# #?? k ?????????????? | | ?????# #### #???????????????? | | ??????#; %$d #???????????????? | | ??????### d #???????????????? | | ????????# =!#####???????????????? | | ???????## %= %* #??????????????????? | | ???????#; = ##??????????????????? | | ???????# =%@ #???????????????????? | | ???????# ! #???????????????????? | | ???????## ## ###???????????????????? | | ???????#; #?;; ?????????????????????? | | ???????## ?# ## #????????????????????? | | ????????# ?##?? #????????????????????? | | ????????#?????? #????????????????????? | | ??????????????? %#????????????????????? | | ??????????????? #????????????????????? | | ??????????????? ????????????????????? | | ??????????????? ????????????????????? | | ??????????????? ????????????????????? | | ???????????????? #???????????????????? | | ???????????????? ##???????????????????? | | ????????????????##????????????????????? | | ??????????????????????????????????????? | | ??????????????????????????????????????? | | ??????????????????????????????????????? | | ??????????????????????????????????????? | | ??????????????????????????????????????? | | ??????????????????????????????????????? | | ??????????????????????????????????????? | | ??????????????????????????????????????? | | ??????????????????????????????????????? | | ??????????????????????????????????????? | +----------------------------------------------------+ Best States ------------- Heat Dissipation 25 Energy Generation 10 Energy Capacity 125 Matter Stores 300 Matter Capacity 300 Sight Range 16 Terrain Scan Range 16 Terrain Scan Density 10 Armor Coverage 150 Weapon Shielding 33 Evasion (%) 55 Item Schematics ----------------- None Robot Schematics ------------------ None Fabricated ------------ Nothing Alien Tech Used ----------------- None Achievements -------------- Slippery One Challenges ------------ None Game ------ Seed TrackerCatalystSegregator Manual? 0 Play Time 00:10:27 Cumulative 8.4 hours Start 2024.04.16 @ 21:21:29 End 2024.04.16 @ 21:31:22 Sessions 1 Manual Loads 0 Difficulty Rogue Special Mode None Game No. 13 Rogue 13 Adventurer 0 Explorer 0 Win Type - Total 0 Types 0/0/0/0/0/0/0/0/0 Lore% 4 Gallery% 11 Achievement% 12 Wizard Run 0 Options --------- Layout 1 ASCII 0 Keyboard 0 Movement Numpad Keybinds 0 Fullscreen 1 Font 24/Smallcaps Map View 50x35 Zoom Use 17% Tactical HUD 1 Map Filters NONE Filters NONE Steam 1 RUN: 017c2908-4c90-4185-b191-8e436cd408fc